[Event "Early-Titled-Tuesday-Blitz-January-23-2024"]
[Site "Chess.com"]
[Date "2024.01.23"]
[Round "2"]
[White "salomez"]
[Black "EvilMorty23"]
[Result "1-0"]
[WhiteElo "2301"]
[BlackElo "2502"]
[TimeControl "180+1"]
[EndTime "8:17:14 PST"]
[Termination "salomez won by checkmate"]

1. e4 {[%clk 0:03:00.9]} 1... e6 {[%clk 0:02:56.4]} 2. d4 {[%clk 0:02:56.3]}
2... d5 {[%clk 0:02:57.3]} 3. exd5 {[%clk 0:02:55.3]} 3... exd5 {[%clk
0:02:58.2]} 4. Nc3 {[%clk 0:02:54.9]} 4... Nc6 {[%clk 0:02:59.1]} 5. Bf4 {[%clk
0:02:38.4]} 5... Bd6 {[%clk 0:02:52.3]} 6. Qd2 {[%clk 0:02:36.6]} 6... Nge7
{[%clk 0:02:50.6]} 7. O-O-O {[%clk 0:02:35.6]} 7... Bf5 {[%clk 0:02:44.9]} 8. f3
{[%clk 0:02:29.5]} 8... h5 {[%clk 0:02:43]} 9. Bb5 {[%clk 0:02:26.7]} 9... Qd7
{[%clk 0:02:42.4]} 10. Nge2 {[%clk 0:02:25.2]} 10... O-O-O {[%clk 0:02:37.5]}
11. Rhe1 {[%clk 0:02:05.9]} 11... a6 {[%clk 0:02:32.8]} 12. Ba4 {[%clk
0:02:02.8]} 12... f6 {[%clk 0:02:29.7]} 13. Bxd6 {[%clk 0:01:48]} 13... Qxd6
{[%clk 0:02:28.9]} 14. Nf4 {[%clk 0:01:36.3]} 14... g5 {[%clk 0:02:23.9]} 15.
Bxc6 {[%clk 0:01:28.9]} 15... bxc6 {[%clk 0:02:19.4]} 16. Nd3 {[%clk 0:01:24.2]}
16... Bxd3 {[%clk 0:02:11.4]} 17. Qxd3 {[%clk 0:01:22.7]} 17... Kd7 {[%clk
0:02:11]} 18. Na4 {[%clk 0:01:18.1]} 18... Ke8 {[%clk 0:02:03.9]} 19. Nc5 {[%clk
0:01:15]} 19... Kf7 {[%clk 0:02:00.3]} 20. Re6 {[%clk 0:01:14.1]} 20... Qf4+
{[%clk 0:01:59.9]} 21. Kb1 {[%clk 0:01:13.5]} 21... Rd6 {[%clk 0:01:53]} 22. g3
{[%clk 0:00:58.5]} 22... Rxe6 {[%clk 0:01:39.3]} 23. gxf4 {[%clk 0:00:55.5]}
23... Rd6 {[%clk 0:01:39.4]} 24. fxg5 {[%clk 0:00:54.2]} 24... fxg5 {[%clk
0:01:40.1]} 25. Re1 {[%clk 0:00:53.2]} 25... Rf6 {[%clk 0:01:25]} 26. Nd7 {[%clk
0:00:49.3]} 26... Rf4 {[%clk 0:01:12.1]} 27. Ne5+ {[%clk 0:00:41.1]} 27... Kf6
{[%clk 0:01:12.1]} 28. Qxa6 {[%clk 0:00:36.9]} 28... Rxd4 {[%clk 0:01:03.1]} 29.
Nxc6 {[%clk 0:00:30.1]} 29... Nxc6 {[%clk 0:01:02.1]} 30. Qxc6+ {[%clk 0:00:31]}
30... Kf5 {[%clk 0:00:52.7]} 31. Qxc7 {[%clk 0:00:31.1]} 31... Rf8 {[%clk
0:00:43.7]} 32. Qe5+ {[%clk 0:00:30.6]} 32... Kg6 {[%clk 0:00:44.1]} 33. Qxd4
{[%clk 0:00:29.9]} 33... Rf6 {[%clk 0:00:43.7]} 34. Qxd5 {[%clk 0:00:29.5]}
34... h4 {[%clk 0:00:43.8]} 35. Qg8+ {[%clk 0:00:28.4]} 35... Kf5 {[%clk
0:00:42.2]} 36. Rg1 {[%clk 0:00:25.6]} 36... Rg6 {[%clk 0:00:40]} 37. Qf7+
{[%clk 0:00:22.9]} 37... Rf6 {[%clk 0:00:40.3]} 38. Qd5+ {[%clk 0:00:22.3]}
38... Kg6 {[%clk 0:00:38.3]} 39. Qxg5+ {[%clk 0:00:23.2]} 39... Kf7 {[%clk
0:00:39]} 40. f4 {[%clk 0:00:20.9]} 40... h3 {[%clk 0:00:38.8]} 41. f5 {[%clk
0:00:21]} 41... Ke7 {[%clk 0:00:38.9]} 42. Re1+ {[%clk 0:00:19.8]} 42... Kf7
{[%clk 0:00:39]} 43. Qh5+ {[%clk 0:00:19.6]} 43... Kg7 {[%clk 0:00:37.3]} 44.
Re7+ {[%clk 0:00:19.7]} 44... Kf8 {[%clk 0:00:37.7]} 45. Qe8# {[%clk 0:00:18.8]}
1-0

[Event "Early-Titled-Tuesday-Blitz-January-23-2024"]
[Site "Chess.com"]
[Date "2024.01.23"]
[Round "2"]
[White "Sajith_Peiris"]
[Black "rynos0411"]
[Result "0-1"]
[WhiteElo "2240"]
[BlackElo "2503"]
[TimeControl "180+1"]
[EndTime "8:17:17 PST"]
[Termination "rynos0411 won by checkmate"]

1. e4 {[%clk 0:02:48]} 1... c5 {[%clk 0:02:55.4]} 2. c3 {[%clk 0:02:47.5]} 2...
d5 {[%clk 0:02:51.5]} 3. exd5 {[%clk 0:02:47.3]} 3... Qxd5 {[%clk 0:02:51.7]} 4.
d4 {[%clk 0:02:47.4]} 4... Nc6 {[%clk 0:02:48.4]} 5. Nf3 {[%clk 0:02:46.8]} 5...
Bg4 {[%clk 0:02:45.9]} 6. Be2 {[%clk 0:02:46.8]} 6... Nf6 {[%clk 0:02:37.3]} 7.
c4 {[%clk 0:02:44.3]} 7... Qd7 {[%clk 0:02:22.5]} 8. d5 {[%clk 0:02:43.1]} 8...
Bxf3 {[%clk 0:02:22.2]} 9. Bxf3 {[%clk 0:02:38.4]} 9... Nd4 {[%clk 0:02:22.3]}
10. Nc3 {[%clk 0:02:35.6]} 10... g6 {[%clk 0:02:18]} 11. Be3 {[%clk 0:02:34.4]}
11... Nxf3+ {[%clk 0:02:15.5]} 12. Qxf3 {[%clk 0:02:33.9]} 12... Rc8 {[%clk
0:02:13.1]} 13. O-O-O {[%clk 0:02:24.6]} 13... Bg7 {[%clk 0:02:11.1]} 14. h4
{[%clk 0:02:21.7]} 14... h5 {[%clk 0:02:10]} 15. Rde1 {[%clk 0:02:18]} 15... O-O
{[%clk 0:02:08.6]} 16. Bg5 {[%clk 0:02:14.3]} 16... Rfe8 {[%clk 0:02:00.8]} 17.
Qf4 {[%clk 0:02:03.4]} 17... Ng4 {[%clk 0:01:54.3]} 18. Qd2 {[%clk 0:01:53.7]}
18... a6 {[%clk 0:01:45.1]} 19. f3 {[%clk 0:01:51.8]} 19... Ne5 {[%clk
0:01:45.2]} 20. Qe2 {[%clk 0:01:41.7]} 20... b5 {[%clk 0:01:43.5]} 21. cxb5
{[%clk 0:01:34.6]} 21... axb5 {[%clk 0:01:42.3]} 22. Bf4 {[%clk 0:01:30.9]}
22... Nc4 {[%clk 0:01:37.2]} 23. a4 {[%clk 0:01:22.3]} 23... Nxb2 {[%clk
0:01:21.9]} 24. Qxb2 {[%clk 0:01:12.3]} 24... b4 {[%clk 0:01:21.7]} 25. Be5
{[%clk 0:01:10.3]} 25... Bh6+ {[%clk 0:01:20.2]} 26. Kb1 {[%clk 0:00:42.1]}
26... bxc3 {[%clk 0:01:17.9]} 27. Qxc3 {[%clk 0:00:42.4]} 27... Qxa4 {[%clk
0:01:11.2]} 28. Re2 {[%clk 0:00:40.2]} 28... Ra8 {[%clk 0:00:52.6]} 29. Rhe1
{[%clk 0:00:24.7]} 29... c4 {[%clk 0:00:45.1]} 30. Rb2 {[%clk 0:00:20.4]} 30...
Qa1+ {[%clk 0:00:40.2]} 31. Kc2 {[%clk 0:00:20.5]} 31... Qa4+ {[%clk 0:00:40.8]}
32. Kb1 {[%clk 0:00:19.7]} 32... Ra5 {[%clk 0:00:27.9]} 33. f4 {[%clk
0:00:18.7]} 33... Rxd5 {[%clk 0:00:27]} 34. Rb4 {[%clk 0:00:17.8]} 34... Rd1+
{[%clk 0:00:26]} 35. Kb2 {[%clk 0:00:17.4]} 35... Qa1+ {[%clk 0:00:23.8]} 36.
Kc2 {[%clk 0:00:16.4]} 36... Qc1# {[%clk 0:00:23.4]} 0-1

[Event "Early-Titled-Tuesday-Blitz-January-23-2024"]
[Site "Chess.com"]
[Date "2024.01.23"]
[Round "2"]
[White "Alexei_Gubajdullin"]
[Black "K_A_S_T_O_R"]
[Result "0-1"]
[WhiteElo "2589"]
[BlackElo "2892"]
[TimeControl "180+1"]
[EndTime "8:17:18 PST"]
[Termination "K_A_S_T_O_R won on time"]

1. d4 {[%clk 0:02:54.7]} 1... Nf6 {[%clk 0:02:59.1]} 2. Nf3 {[%clk 0:02:47.2]}
2... e6 {[%clk 0:02:58.2]} 3. Bf4 {[%clk 0:02:45.9]} 3... b6 {[%clk 0:02:55.3]}
4. e3 {[%clk 0:02:45]} 4... Bb7 {[%clk 0:02:55.7]} 5. Be2 {[%clk 0:02:45]} 5...
c5 {[%clk 0:02:55]} 6. O-O {[%clk 0:02:44.4]} 6... cxd4 {[%clk 0:02:55]} 7. exd4
{[%clk 0:02:44.3]} 7... Be7 {[%clk 0:02:55.6]} 8. h3 {[%clk 0:02:44.5]} 8... O-O
{[%clk 0:02:56]} 9. a4 {[%clk 0:02:42.3]} 9... a6 {[%clk 0:02:53]} 10. Na3
{[%clk 0:02:41.8]} 10... d6 {[%clk 0:02:49]} 11. c3 {[%clk 0:02:39.7]} 11...
Nbd7 {[%clk 0:02:48.4]} 12. Nc2 {[%clk 0:02:35.9]} 12... Nd5 {[%clk 0:02:45.4]}
13. Bg3 {[%clk 0:02:35]} 13... Qc7 {[%clk 0:02:39.3]} 14. Nd2 {[%clk 0:02:27.2]}
14... N5f6 {[%clk 0:02:31.7]} 15. Bf3 {[%clk 0:02:23.7]} 15... Rfe8 {[%clk
0:02:30.1]} 16. Re1 {[%clk 0:02:22.3]} 16... Rac8 {[%clk 0:02:26.6]} 17. Ne3
{[%clk 0:02:15.1]} 17... Bf8 {[%clk 0:02:24.1]} 18. Ndc4 {[%clk 0:02:07.1]}
18... Bxf3 {[%clk 0:02:18.7]} 19. Qxf3 {[%clk 0:02:06.7]} 19... Rb8 {[%clk
0:02:18.7]} 20. d5 {[%clk 0:01:58.6]} 20... e5 {[%clk 0:02:16]} 21. Nd2 {[%clk
0:01:50.9]} 21... b5 {[%clk 0:02:09.1]} 22. axb5 {[%clk 0:01:48.4]} 22... axb5
{[%clk 0:02:09.7]} 23. Bh4 {[%clk 0:01:45.6]} 23... Ra8 {[%clk 0:02:08.2]} 24.
Ng4 {[%clk 0:01:39.1]} 24... Nxg4 {[%clk 0:01:58]} 25. hxg4 {[%clk 0:01:38.9]}
25... Nb6 {[%clk 0:01:53.5]} 26. Ne4 {[%clk 0:01:18]} 26... Rxa1 {[%clk
0:01:46.8]} 27. Rxa1 {[%clk 0:01:17.6]} 27... Nxd5 {[%clk 0:01:42.7]} 28. Rd1
{[%clk 0:01:02.5]} 28... Nb6 {[%clk 0:01:33.6]} 29. Qf5 {[%clk 0:00:54.2]} 29...
d5 {[%clk 0:01:26.3]} 30. Nf6+ {[%clk 0:00:37]} 30... gxf6 {[%clk 0:01:25.9]}
31. Bxf6 {[%clk 0:00:37.9]} 31... h6 {[%clk 0:01:22.5]} 32. g5 {[%clk
0:00:32.8]} 32... Qd7 {[%clk 0:01:22.4]} 33. Qf3 {[%clk 0:00:32.6]} 33... Qe6
{[%clk 0:01:15.9]} 34. Qh5 {[%clk 0:00:22.4]} 34... Qf5 {[%clk 0:01:11.2]} 35.
g4 {[%clk 0:00:11.6]} 35... Qg6 {[%clk 0:01:11]} 36. Qh4 {[%clk 0:00:10.9]}
36... Nd7 {[%clk 0:01:05.9]} 37. Rxd5 {[%clk 0:00:09.9]} 37... Nxf6 {[%clk
0:01:05.4]} 38. gxf6 {[%clk 0:00:10.1]} 38... Re6 {[%clk 0:01:00.6]} 39. Rxb5
{[%clk 0:00:08]} 39... Kh7 {[%clk 0:00:58.9]} 40. Rb8 {[%clk 0:00:06.6]} 40...
Bd6 {[%clk 0:00:59.1]} 41. Rd8 {[%clk 0:00:04.8]} 41... Rxf6 {[%clk 0:00:59]}
42. Rd7 {[%clk 0:00:03.5]} 42... Kg7 {[%clk 0:00:58.8]} 43. Kg2 {[%clk
0:00:02.1]} 43... Qe4+ {[%clk 0:00:57.3]} 44. Kg1 {[%clk 0:00:01.1]} 44... Bc5
{[%clk 0:00:56.7]} 0-1

[Event "Early-Titled-Tuesday-Blitz-January-23-2024"]
[Site "Chess.com"]
[Date "2024.01.23"]
[Round "2"]
[White "ljuks68"]
[Black "CSB7"]
[Result "0-1"]
[WhiteElo "2469"]
[BlackElo "2747"]
[TimeControl "180+1"]
[EndTime "8:17:18 PST"]
[Termination "CSB7 won on time"]

1. e4 {[%clk 0:03:00.9]} 1... c5 {[%clk 0:02:59.9]} 2. Nf3 {[%clk 0:03:00.8]}
2... d6 {[%clk 0:03:00.6]} 3. d4 {[%clk 0:03:01.2]} 3... cxd4 {[%clk 0:03:01.5]}
4. Nxd4 {[%clk 0:03:01.7]} 4... Nf6 {[%clk 0:03:01.2]} 5. Nc3 {[%clk 0:03:02]}
5... a6 {[%clk 0:02:59.9]} 6. Bg5 {[%clk 0:03:02.1]} 6... e6 {[%clk 0:02:56.3]}
7. f4 {[%clk 0:03:02.3]} 7... Nc6 {[%clk 0:02:54.1]} 8. Qd2 {[%clk 0:02:54]}
8... h6 {[%clk 0:02:53.7]} 9. Bxf6 {[%clk 0:02:46.5]} 9... Qxf6 {[%clk
0:02:54.6]} 10. Nxc6 {[%clk 0:02:43.3]} 10... bxc6 {[%clk 0:02:55.5]} 11. Bd3
{[%clk 0:02:36.8]} 11... Qd8 {[%clk 0:02:42.8]} 12. O-O {[%clk 0:02:34.5]} 12...
Be7 {[%clk 0:02:32.9]} 13. f5 {[%clk 0:02:29.4]} 13... Qb6+ {[%clk 0:02:16.6]}
14. Kh1 {[%clk 0:02:28.8]} 14... Qxb2 {[%clk 0:02:12]} 15. Na4 {[%clk
0:02:14.6]} 15... Qd4 {[%clk 0:02:08.5]} 16. c4 {[%clk 0:01:39]} 16... O-O
{[%clk 0:02:02.3]} 17. Rab1 {[%clk 0:01:32.8]} 17... exf5 {[%clk 0:01:52.1]} 18.
exf5 {[%clk 0:01:29.4]} 18... Bg5 {[%clk 0:01:44.6]} 19. Qe2 {[%clk 0:01:23.1]}
19... Ra7 {[%clk 0:01:31.5]} 20. Rfd1 {[%clk 0:00:53.8]} 20... Re7 {[%clk
0:01:23.3]} 21. Qc2 {[%clk 0:00:51.2]} 21... Re3 {[%clk 0:01:19.5]} 22. Nb6
{[%clk 0:00:47.7]} 22... Qc5 {[%clk 0:00:56.2]} 23. Nxc8 {[%clk 0:00:43.6]}
23... Rxc8 {[%clk 0:00:57.1]} 24. Be4 {[%clk 0:00:29.7]} 24... Re8 {[%clk
0:00:49]} 25. Bf3 {[%clk 0:00:29.9]} 25... d5 {[%clk 0:00:49]} 26. Rbc1 {[%clk
0:00:15.8]} 26... dxc4 {[%clk 0:00:28.3]} 27. Qa4 {[%clk 0:00:15.1]} 27... Rxf3
{[%clk 0:00:19.9]} 28. gxf3 {[%clk 0:00:14]} 28... Bxc1 {[%clk 0:00:14.9]} 29.
Rxc1 {[%clk 0:00:12.9]} 29... Qf2 {[%clk 0:00:15]} 30. Qxc6 {[%clk 0:00:06.2]}
30... Re2 {[%clk 0:00:15.4]} 0-1

[Event "Early-Titled-Tuesday-Blitz-January-23-2024"]
[Site "Chess.com"]
[Date "2024.01.23"]
[Round "2"]
[White "tomesao"]
[Black "Al_Shima"]
[Result "1-0"]
[WhiteElo "2493"]
[BlackElo "2217"]
[TimeControl "180+1"]
[EndTime "8:17:20 PST"]
[Termination "tomesao won by resignation"]

1. d4 {[%clk 0:03:00.9]} 1... Nf6 {[%clk 0:02:55.9]} 2. Nf3 {[%clk 0:03:01.8]}
2... e6 {[%clk 0:02:54.9]} 3. Bf4 {[%clk 0:02:57.7]} 3... c5 {[%clk 0:02:52.7]}
4. e3 {[%clk 0:02:57.8]} 4... Qb6 {[%clk 0:02:52.4]} 5. b3 {[%clk 0:02:56.2]}
5... Nc6 {[%clk 0:02:52.4]} 6. c3 {[%clk 0:02:54.1]} 6... d5 {[%clk 0:02:52.7]}
7. Nbd2 {[%clk 0:02:53.6]} 7... Bd7 {[%clk 0:02:52.8]} 8. Bd3 {[%clk 0:02:52.7]}
8... Rc8 {[%clk 0:02:53.2]} 9. O-O {[%clk 0:02:50.9]} 9... h6 {[%clk 0:02:53.7]}
10. Re1 {[%clk 0:02:50.3]} 10... Nh5 {[%clk 0:02:54]} 11. Be5 {[%clk 0:02:48.9]}
11... Nxe5 {[%clk 0:02:53.2]} 12. Nxe5 {[%clk 0:02:49.8]} 12... Nf6 {[%clk
0:02:53.5]} 13. f4 {[%clk 0:02:42.5]} 13... Bd6 {[%clk 0:02:52.4]} 14. Ndf3
{[%clk 0:02:40.6]} 14... cxd4 {[%clk 0:02:37]} 15. cxd4 {[%clk 0:02:39.9]} 15...
O-O {[%clk 0:02:32.7]} 16. Nxd7 {[%clk 0:02:33.9]} 16... Nxd7 {[%clk 0:02:31.4]}
17. Ne5 {[%clk 0:02:34.8]} 17... Bxe5 {[%clk 0:02:30.5]} 18. fxe5 {[%clk
0:02:34.1]} 18... Rc3 {[%clk 0:02:26.4]} 19. Qd2 {[%clk 0:02:32.5]} 19... Rfc8
{[%clk 0:02:25.7]} 20. Rac1 {[%clk 0:02:31.1]} 20... R3c6 {[%clk 0:01:56.8]} 21.
Bb1 {[%clk 0:02:24.8]} 21... g6 {[%clk 0:01:31.5]} 22. Rxc6 {[%clk 0:02:05.3]}
22... Qxc6 {[%clk 0:01:32.4]} 23. Rf1 {[%clk 0:02:01.4]} 23... Kg7 {[%clk
0:00:42.2]} 24. h3 {[%clk 0:01:55.7]} 24... Qc3 {[%clk 0:00:32.4]} 25. Qf2
{[%clk 0:01:54.5]} 25... Rf8 {[%clk 0:00:32.8]} 26. Qf3 {[%clk 0:01:51.4]} 26...
f5 {[%clk 0:00:26.8]} 27. Kh2 {[%clk 0:01:45.2]} 27... a5 {[%clk 0:00:20.9]} 28.
Rf2 {[%clk 0:01:41.7]} 28... b5 {[%clk 0:00:20.4]} 29. Rc2 {[%clk 0:01:39.1]}
29... Qb4 {[%clk 0:00:14.5]} 30. Rc7 {[%clk 0:01:37.9]} 30... Rf7 {[%clk
0:00:15]} 31. Qe2 {[%clk 0:01:36.9]} 31... f4 {[%clk 0:00:14.2]} 32. Rb7 {[%clk
0:01:31.1]} 32... fxe3 {[%clk 0:00:08.6]} 33. Qxe3 {[%clk 0:01:20.9]} 33... a4
{[%clk 0:00:03.3]} 34. Qd3 {[%clk 0:01:20.3]} 34... Nf8 {[%clk 0:00:03.4]} 35.
Rxf7+ {[%clk 0:01:14.3]} 35... Kxf7 {[%clk 0:00:03.4]} 36. Bc2 {[%clk
0:01:14.3]} 36... a3 {[%clk 0:00:02.5]} 37. Qf3+ {[%clk 0:01:11.9]} 37... Kg7
{[%clk 0:00:02.6]} 38. Qf6+ {[%clk 0:01:11.3]} 38... Kg8 {[%clk 0:00:03.1]} 39.
Bxg6 {[%clk 0:01:10.3]} 39... Nxg6 {[%clk 0:00:01.8]} 40. Qxg6+ {[%clk
0:01:11.2]} 40... Kf8 {[%clk 0:00:02.7]} 41. Qxh6+ {[%clk 0:01:10.8]} 41... Ke8
{[%clk 0:00:02.9]} 42. Qxe6+ {[%clk 0:01:09.6]} 42... Kf8 {[%clk 0:00:03.5]} 43.
Qf6+ {[%clk 0:01:09.3]} 43... Kg8 {[%clk 0:00:03.2]} 44. e6 {[%clk 0:01:04.8]}
44... Qd6+ {[%clk 0:00:02.3]} 45. Qe5 {[%clk 0:01:02.3]} 45... Qf8 {[%clk
0:00:01.8]} 46. e7 {[%clk 0:01:00.9]} 46... Qe8 {[%clk 0:00:02.6]} 47. Qxd5+
{[%clk 0:00:58]} 47... Kg7 {[%clk 0:00:02.2]} 48. Qd8 {[%clk 0:00:56.4]} 48...
Kf7 {[%clk 0:00:02.6]} 49. Qxe8+ {[%clk 0:00:55.6]} 49... Kxe8 {[%clk
0:00:03.5]} 50. Kg3 {[%clk 0:00:55.5]} 50... Kxe7 {[%clk 0:00:04.4]} 51. Kf4
{[%clk 0:00:56.1]} 51... Kd6 {[%clk 0:00:05.3]} 52. Ke4 {[%clk 0:00:56.6]} 1-0

[Event "Early-Titled-Tuesday-Blitz-January-23-2024"]
[Site "Chess.com"]
[Date "2024.01.23"]
[Round "2"]
[White "Jospem"]
[Black "Tejas_Rama"]
[Result "1-0"]
[WhiteElo "3099"]
[BlackElo "2645"]
[TimeControl "180+1"]
[EndTime "8:17:24 PST"]
[Termination "Jospem won by resignation"]

1. e4 {[%clk 0:03:00.9]} 1... e5 {[%clk 0:03:00]} 2. Nf3 {[%clk 0:02:59.9]} 2...
Nc6 {[%clk 0:02:58.8]} 3. Bb5 {[%clk 0:02:59.4]} 3... Nf6 {[%clk 0:02:58.6]} 4.
d3 {[%clk 0:02:58.9]} 4... Bc5 {[%clk 0:02:58.3]} 5. Ba4 {[%clk 0:02:59.5]} 5...
d6 {[%clk 0:02:49.1]} 6. Bg5 {[%clk 0:02:57.5]} 6... h6 {[%clk 0:02:48.7]} 7.
Bh4 {[%clk 0:02:58]} 7... g5 {[%clk 0:02:47]} 8. Bg3 {[%clk 0:02:58.3]} 8... Bg4
{[%clk 0:02:46.2]} 9. Nbd2 {[%clk 0:02:57.9]} 9... a6 {[%clk 0:02:43.3]} 10. c3
{[%clk 0:02:58]} 10... b5 {[%clk 0:02:37.3]} 11. Bb3 {[%clk 0:02:58]} 11... Bb6
{[%clk 0:02:27.1]} 12. Nf1 {[%clk 0:02:54.8]} 12... Ne7 {[%clk 0:02:03.4]} 13.
Ne3 {[%clk 0:02:50.1]} 13... Bh5 {[%clk 0:01:56.6]} 14. O-O {[%clk 0:02:37]}
14... O-O {[%clk 0:01:31.1]} 15. Re1 {[%clk 0:02:26.1]} 15... Qd7 {[%clk
0:01:27.9]} 16. Bc2 {[%clk 0:02:07.8]} 16... Bxe3 {[%clk 0:01:17.5]} 17. fxe3
{[%clk 0:02:05.5]} 17... Ng6 {[%clk 0:01:08.4]} 18. Rf1 {[%clk 0:02:03.1]} 18...
Nh7 {[%clk 0:00:57.4]} 19. d4 {[%clk 0:01:58]} 19... Qe7 {[%clk 0:00:51.9]} 20.
Qe1 {[%clk 0:01:56.8]} 20... Rab8 {[%clk 0:00:43.3]} 21. a4 {[%clk 0:01:55.4]}
21... bxa4 {[%clk 0:00:40.9]} 22. Qc1 {[%clk 0:01:51.7]} 22... exd4 {[%clk
0:00:36.3]} 23. exd4 {[%clk 0:01:46.5]} 23... Bxf3 {[%clk 0:00:19.3]} 24. Rxf3
{[%clk 0:01:47.4]} 24... g4 {[%clk 0:00:19.8]} 25. Re3 {[%clk 0:01:39.2]} 25...
h5 {[%clk 0:00:18.1]} 26. Rxa4 {[%clk 0:01:34.8]} 26... Rb6 {[%clk 0:00:16.9]}
27. Ra5 {[%clk 0:01:32.9]} 27... h4 {[%clk 0:00:16.2]} 28. Bf2 {[%clk
0:01:33.3]} 28... Rb5 {[%clk 0:00:11.7]} 29. Rxb5 {[%clk 0:01:30.6]} 29... axb5
{[%clk 0:00:11.9]} 30. Qd1 {[%clk 0:01:31.3]} 30... Qg5 {[%clk 0:00:11.8]} 31.
g3 {[%clk 0:01:27.7]} 31... h3 {[%clk 0:00:10.5]} 32. Re1 {[%clk 0:01:27.7]}
32... Ra8 {[%clk 0:00:10.3]} 33. Be3 {[%clk 0:01:27.8]} 33... Qh5 {[%clk
0:00:10.3]} 34. Qd2 {[%clk 0:01:27.2]} 34... Ra2 {[%clk 0:00:08.6]} 35. Bb1
{[%clk 0:01:27.8]} 35... Ra1 {[%clk 0:00:08.5]} 36. Rf1 {[%clk 0:01:28.1]} 36...
Nhf8 {[%clk 0:00:08.2]} 37. Qf2 {[%clk 0:01:24.2]} 37... Ne7 {[%clk 0:00:03.9]}
38. Bd3 {[%clk 0:01:24]} 38... Rxf1+ {[%clk 0:00:03.6]} 39. Kxf1 {[%clk
0:01:24.9]} 39... Nd7 {[%clk 0:00:02.3]} 40. Ke1 {[%clk 0:01:23.2]} 40... Kg7
{[%clk 0:00:02.8]} 41. Kd1 {[%clk 0:01:22.4]} 41... Qg6 {[%clk 0:00:03.4]} 42.
Kc2 {[%clk 0:01:20.6]} 42... c6 {[%clk 0:00:03.5]} 43. e5 {[%clk 0:01:19.1]}
43... Qe6 {[%clk 0:00:02.5]} 44. exd6 {[%clk 0:01:19.6]} 44... Qxd6 {[%clk
0:00:03.4]} 45. Qe2 {[%clk 0:01:19.1]} 45... f5 {[%clk 0:00:02.4]} 46. Bf4
{[%clk 0:01:19]} 46... Qf6 {[%clk 0:00:02.4]} 47. Qf2 {[%clk 0:01:11.3]} 47...
Nd5 {[%clk 0:00:03]} 48. Bd2 {[%clk 0:01:11.7]} 48... Kg6 {[%clk 0:00:03]} 49.
Qe2 {[%clk 0:01:11.9]} 49... Qe7 {[%clk 0:00:02.9]} 50. Qxg4+ {[%clk 0:01:12]}
50... Kf7 {[%clk 0:00:02.8]} 51. Qxf5+ {[%clk 0:01:12.4]} 51... N7f6 {[%clk
0:00:03.3]} 52. g4 {[%clk 0:01:10.7]} 52... Ke8 {[%clk 0:00:03.9]} 53. g5 {[%clk
0:01:10.7]} 53... Nd7 {[%clk 0:00:03.3]} 54. Qe4 {[%clk 0:01:09.4]} 54... Nf8
{[%clk 0:00:02.6]} 55. Qxe7+ {[%clk 0:01:09.6]} 55... Kxe7 {[%clk 0:00:03.5]}
56. Bf1 {[%clk 0:01:09.7]} 56... Ke6 {[%clk 0:00:03.3]} 57. Bxh3+ {[%clk
0:01:10.3]} 57... Kf7 {[%clk 0:00:04.1]} 58. Bg4 {[%clk 0:01:10.7]} 58... Ne7
{[%clk 0:00:04.7]} 59. h4 {[%clk 0:01:11.1]} 59... Nfg6 {[%clk 0:00:05.2]} 60.
h5 {[%clk 0:01:11.5]} 60... Nh4 {[%clk 0:00:05.6]} 61. g6+ {[%clk 0:01:12.2]}
1-0

[Event "Early-Titled-Tuesday-Blitz-January-23-2024"]
[Site "Chess.com"]
[Date "2024.01.23"]
[Round "2"]
[White "andrzej"]
[Black "hurricane7791"]
[Result "0-1"]
[WhiteElo "2386"]
[BlackElo "2691"]
[TimeControl "180+1"]
[EndTime "8:17:26 PST"]
[Termination "hurricane7791 won on time"]

1. e4 {[%clk 0:03:00.9]} 1... c5 {[%clk 0:02:51]} 2. Nf3 {[%clk 0:03:00.9]} 2...
d6 {[%clk 0:02:46.1]} 3. d4 {[%clk 0:03:01.3]} 3... cxd4 {[%clk 0:02:47]} 4.
Nxd4 {[%clk 0:03:02.2]} 4... Nf6 {[%clk 0:02:47.6]} 5. Nc3 {[%clk 0:03:02.7]}
5... a6 {[%clk 0:02:47.1]} 6. Be3 {[%clk 0:03:03.3]} 6... e5 {[%clk 0:02:47.3]}
7. Nb3 {[%clk 0:03:03.9]} 7... Be6 {[%clk 0:02:47.6]} 8. h3 {[%clk 0:03:04.2]}
8... h5 {[%clk 0:02:47.6]} 9. f4 {[%clk 0:02:57.3]} 9... exf4 {[%clk 0:02:47.2]}
10. Bxf4 {[%clk 0:02:57.5]} 10... Nc6 {[%clk 0:02:48.1]} 11. Qf3 {[%clk
0:02:56.8]} 11... Ne5 {[%clk 0:02:48.1]} 12. Qf2 {[%clk 0:02:56.8]} 12... Rc8
{[%clk 0:02:47.7]} 13. O-O-O {[%clk 0:02:42.2]} 13... Nfd7 {[%clk 0:02:47.7]}
14. Kb1 {[%clk 0:02:38.7]} 14... Be7 {[%clk 0:02:47.6]} 15. Nd4 {[%clk
0:02:37.4]} 15... Rxc3 {[%clk 0:02:46.2]} 16. Nxe6 {[%clk 0:02:30.2]} 16... fxe6
{[%clk 0:02:45.2]} 17. bxc3 {[%clk 0:02:30.2]} 17... O-O {[%clk 0:02:45.8]} 18.
Qd2 {[%clk 0:02:16.6]} 18... Qa5 {[%clk 0:02:43.4]} 19. c4 {[%clk 0:02:02]}
19... Qb6+ {[%clk 0:02:40.7]} 20. Ka1 {[%clk 0:02:02]} 20... Bf6 {[%clk
0:02:41.3]} 21. c3 {[%clk 0:01:59.2]} 21... Qa5 {[%clk 0:02:39]} 22. Rc1 {[%clk
0:01:53.1]} 22... Qa3 {[%clk 0:02:31.2]} 23. Be3 {[%clk 0:01:48.1]} 23... Nc5
{[%clk 0:02:28.2]} 24. Bxc5 {[%clk 0:01:41.6]} 24... Qxc5 {[%clk 0:02:29.1]} 25.
Bd3 {[%clk 0:01:35.9]} 25... Nd7 {[%clk 0:02:24.7]} 26. Rc2 {[%clk 0:01:25.1]}
26... Nb6 {[%clk 0:02:16]} 27. Rb1 {[%clk 0:01:23.9]} 27... Rf7 {[%clk
0:02:14.7]} 28. Qe2 {[%clk 0:01:17.4]} 28... Na4 {[%clk 0:02:12.8]} 29. Rb3
{[%clk 0:01:17.1]} 29... Rc7 {[%clk 0:02:04.4]} 30. e5 {[%clk 0:01:14.6]} 30...
Qxe5 {[%clk 0:01:56.8]} 31. Qxe5 {[%clk 0:01:10.8]} 31... Bxe5 {[%clk
0:01:57.7]} 32. Kb1 {[%clk 0:01:02.4]} 32... Nc5 {[%clk 0:01:57]} 33. Bg6 {[%clk
0:00:59]} 33... h4 {[%clk 0:01:56.9]} 34. Rb6 {[%clk 0:00:51]} 34... Na4 {[%clk
0:01:52.8]} 35. Rb3 {[%clk 0:00:44.1]} 35... Kf8 {[%clk 0:01:52.9]} 36. Rf2+
{[%clk 0:00:42.1]} 36... Bf6 {[%clk 0:01:53.2]} 37. Rf3 {[%clk 0:00:41.9]} 37...
Ke7 {[%clk 0:01:53]} 38. Kc2 {[%clk 0:00:39.7]} 38... d5 {[%clk 0:01:45.2]} 39.
cxd5 {[%clk 0:00:37.8]} 39... exd5 {[%clk 0:01:46.1]} 40. Ra3 {[%clk 0:00:30.8]}
40... b5 {[%clk 0:01:43.3]} 41. Rxa4 {[%clk 0:00:19.4]} 41... bxa4 {[%clk
0:01:42.5]} 42. Rd3 {[%clk 0:00:19.5]} 42... d4 {[%clk 0:01:41.8]} 43. Kd2
{[%clk 0:00:15]} 43... dxc3+ {[%clk 0:01:41.6]} 44. Kc2 {[%clk 0:00:15.5]} 44...
Rb7 {[%clk 0:01:41.8]} 45. Re3+ {[%clk 0:00:14.7]} 45... Kd6 {[%clk 0:01:41.5]}
46. Re8 {[%clk 0:00:07.5]} 46... Rb2+ {[%clk 0:01:40.8]} 47. Kc1 {[%clk
0:00:08.1]} 47... Rxa2 {[%clk 0:01:39.5]} 48. Rb8 {[%clk 0:00:03.1]} 48... Rxg2
{[%clk 0:01:38.5]} 49. Rb6+ {[%clk 0:00:01.9]} 49... Kc5 {[%clk 0:01:38.7]} 50.
Rc6+ {[%clk 0:00:01.6]} 50... Kb4 {[%clk 0:01:33.9]} 51. Be4 {[%clk 0:00:02.1]}
51... Re2 {[%clk 0:01:32.3]} 52. Bf3 {[%clk 0:00:01.6]} 52... Bg5+ {[%clk
0:01:30.3]} 53. Kd1 {[%clk 0:00:01.9]} 53... Rd2+ {[%clk 0:01:30.4]} 54. Ke1
{[%clk 0:00:02.1]} 54... a3 {[%clk 0:01:27.9]} 55. Rxa6 {[%clk 0:00:01.3]} 55...
c2 {[%clk 0:01:24.6]} 56. Rc6 {[%clk 0:00:01.5]} 56... a2 {[%clk 0:01:22.9]} 57.
Rb6+ {[%clk 0:00:01.3]} 57... Ka5 {[%clk 0:01:22.4]} 0-1